bitfinex/quotes_ETHUSD_20230404
["timestamp","ask_amount","ask_price","bid_price","bid_amount"]
[1680592110656,0.002,1820.0,1819.7,11.92514677]
[1680592110880,9.74760001,1820.3,1819.8,1.93578442]
[1680592111055,9.74760001,1820.3,1819.9,0.65935]
[1680592111355,9.74760001,1820.3,1820.0,0.065935]
[1680592111556,9.74760001,1820.3,1820.0,0.80377]
[1680592112156,9.74760001,1820.3,1820.1,0.27714112]
[1680592112673,1.206,1820.2,1820.1,0.27714112]
[1680592113060,1.206,1820.2,1820.0,0.586]
[1680592113262,1.206,1820.2,1819.7,0.96366974]
[1680592113468,0.1206,1820.1,1819.7,0.96366974]
[1680592114079,0.1206,1820.1,1819.8,0.26615435]
[1680592114280,0.1206,1820.1,1819.9,0.21979]
[1680592114485,0.1206,1820.1,1819.9,0.546]
[1680592114788,0.1206,1820.1,1819.9,0.76579]
[1680592115519,9.74160001,1820.3,1820.1,5.819]
[1680592115520,0.002,1820.3,1820.1,5.819]
[1680592115659,0.12327001,1820.9,1820.2,12.12369562]
[1680592115853,0.12127001,1820.9,1820.5,0.5673346]
[1680592116172,0.12127001,1820.9,1820.6,2.1052646]
[1680592116354,0.12127001,1820.9,1820.6,2.1112646]
[1680592116560,0.12127001,1820.9,1820.6,5.1112646]
[1680592116757,0.12127001,1820.9,1820.7,0.093]
[1680592117013,0.12127001,1820.9,1820.8,1.53777]
[1680592117152,0.007,1821.0,1820.8,1.56001048]
[1680592117360,0.11748641,1821.2,1821.0,9.137]
[1680592117582,0.0100369,1821.7,1821.1,19.03924744]
[1680592117779,1.97886522,1822.7,1821.6,8.58502218]
[1680592117981,7.01976869,1822.8,1821.9,0.21954]
[1680592117982,0.54937375,1822.8,1821.9,0.21954]
[1680592118282,1.0,1822.4,1821.9,0.006]
[1680592118506,1.0,1822.4,1821.7,0.006]
[1680592118507,1.0,1821.8,1821.7,0.006]
[1680592118722,10.137,1821.8,1821.6,0.006]
[1680592118914,0.1,1821.7,1821.5,0.006]
[1680592119215,0.1,1821.7,1821.4,0.006]
[1680592119544,3.318,1821.6,1821.1,0.156]
[1680592119846,3.318,1821.6,1821.0,0.006]
[1680592119847,3.318,1821.3,1821.0,0.006]
[1680592120022,4.524,1821.3,1820.8,0.15]
[1680592120313,0.3318,1821.2,1820.8,0.15]
[1680592120515,0.3318,1821.2,1820.8,0.17224048]
[1680592121118,0.3318,1821.2,1820.8,0.15]
[1680592121316,1.208,1821.3,1820.8,0.15]
[1680592121522,0.85,1821.4,1820.8,0.15]
[1680592121688,1.06961,1821.4,1820.9,0.176]
[1680592121881,1.06961,1821.4,1820.8,0.15]
[1680592122082,0.106961,1821.3,1820.8,0.15]
[1680592122437,0.326591,1821.3,1820.8,0.326]
[1680592122887,0.106961,1821.3,1820.8,0.326]
[1680592123081,0.326581,1821.3,1820.8,0.326]
[1680592123320,0.002,1821.5,1820.9,2.96426143]
[1680592123482,1.50358,1821.7,1821.2,0.15]
[1680592123684,1.12358,1821.7,1821.2,0.1]
[1680592123913,1.11958,1821.7,1821.2,0.176]
[1680592124090,1.11958,1821.7,1821.3,0.25377707]
[1680592124298,0.111958,1821.6,1821.3,0.25377707]
[1680592124780,0.008,1821.9,1821.3,10.07103362]
[1680592125042,0.006,1822.0,1821.4,0.176]
[1680592125220,0.21955,1821.9,1821.5,0.1]
[1680592125684,3.318,1821.9,1821.5,0.1]
[1680592126295,1.52274,1822.0,1821.5,0.1]
[1680592126491,1.90581,1822.0,1821.5,0.1]
[1680592126684,0.190581,1821.9,1821.5,0.1]
[1680592126915,0.21956,1821.8,1821.5,0.1]
[1680592127110,0.25974,1822.0,1821.4,0.176]
[1680592127317,0.25974,1822.0,1821.4,0.182]
[1680592127481,0.25974,1822.0,1821.5,0.1]
[1680592127688,0.0402,1822.0,1821.5,0.1]
[1680592129005,0.0402,1822.0,1821.5,0.276]
[1680592129391,0.0402,1822.0,1821.5,0.1]
[1680592129591,0.0402,1822.0,1821.6,0.176]
[1680592129812,0.0402,1822.0,1821.5,0.276]
[1680592130213,0.0402,1822.0,1821.4,0.22561]
[1680592130214,0.002,1822.0,1821.4,5.819]
[1680592130416,0.006,1822.1,1821.6,1.376]
[1680592130615,0.006,1822.1,1821.7,0.21956]
[1680592130887,0.006,1822.2,1821.7,0.39556]
[1680592131088,0.006,1822.2,1821.8,0.176]
[1680592131288,0.006,1822.2,1821.8,0.39556]
[1680592132632,0.006,1822.2,1821.8,0.088]
[1680592132999,0.006,1822.2,1821.8,0.30756]
[1680592133199,0.006,1822.2,1821.8,0.088]
[1680592133401,0.11600001,1822.3,1821.8,0.088]
[1680592133749,0.26974901,1822.3,1821.8,0.30755]
[1680592134100,0.26974901,1822.3,1821.8,0.65867]
[1680592134301,0.26974901,1822.3,1821.8,0.74667]
[1680592134559,0.11600001,1822.3,1821.9,0.30754]
[1680592134701,0.11600001,1822.3,1821.9,1.95764]
[1680592135099,0.11000001,1822.3,1821.9,1.95764]
[1680592135635,0.11600001,1822.3,1821.9,1.51854]
[1680592135868,0.17152351,1822.3,1821.9,1.299]
[1680592136022,0.16552351,1822.3,1821.9,0.088]
[1680592136219,0.17152351,1822.3,1821.9,0.088]
[1680592136905,0.17152351,1822.3,1821.9,0.21954]
[1680592137104,0.17152351,1822.3,1821.9,0.30754]
[1680592137718,0.11600001,1822.3,1822.0,0.088]
[1680592138006,0.11600001,1822.3,1822.0,2.18685627]
[1680592138007,0.11000001,1822.3,1822.0,2.18685627]
[1680592138205,0.11000001,1822.3,1822.0,5.2090821]
[1680592138441,0.11000001,1822.3,1822.1,0.088]
[1680592138755,0.11000001,1822.3,1822.2,1.86853]
[1680592138904,0.11000001,1822.3,1822.2,1.81853]
[1680592139109,0.11000001,1822.3,1822.2,1.90653]
[1680592139913,0.11000001,1822.3,1822.2,1.46751]
[1680592140122,0.11000001,1822.3,1822.2,4.92875339]
[1680592140323,0.11000001,1822.3,1822.2,6.14344755]
[1680592140539,0.11000001,1822.3,1822.2,6.14544755]
[1680592140867,0.11000001,1822.3,1822.2,14.73046973]
[1680592141012,0.11000001,1822.3,1822.2,15.93446973]
[1680592141716,0.11000001,1822.3,1822.2,14.72446973]
[1680592142431,0.11000001,1822.3,1822.2,8.90211073]
[1680592143217,0.11000001,1822.3,1822.2,14.72111073]
[1680592143465,0.11000001,1822.3,1822.2,11.95508855]
[1680592144742,0.11000001,1822.3,1822.2,6.11386516]
[1680592144943,0.11000001,1822.3,1822.2,4.90986516]
[1680592145159,0.11000001,1822.3,1822.2,0.088]
[1680592145345,0.11000001,1822.3,1822.0,0.23725627]
[1680592145956,0.11000001,1822.3,1822.0,0.89585627]
[1680592147161,0.11000001,1822.3,1822.0,0.45678627]
[1680592147576,0.11000001,1822.3,1822.0,0.98385627]
[1680592147746,0.11000001,1822.3,1822.0,0.6431749]
[1680592147934,0.11000001,1822.3,1822.0,0.45678627]
[1680592148134,0.11000001,1822.3,1822.0,0.54478627]
[1680592148440,0.11000001,1822.3,1822.0,0.32525627]
[1680592148787,0.11000001,1822.3,1822.0,0.54478627]
[1680592148960,0.11000001,1822.3,1822.0,0.50078627]
[1680592150570,0.11000001,1822.3,1822.0,0.28125627]
[1680592150772,0.11000001,1822.3,1822.0,0.23725627]
[1680592151336,0.16552351,1822.3,1822.0,0.23725627]
[1680592151776,0.38502351,1822.3,1822.0,0.23725627]
[1680592152074,1.60202351,1822.3,1821.7,3.26556]
[1680592152258,2.04102351,1822.3,1821.7,0.044]
[1680592152461,0.20410235,1822.2,1821.7,0.044]
[1680592152771,0.42361235,1822.2,1821.7,0.044]
[1680592153567,0.86863235,1822.2,1821.7,0.044]
[1680592153875,0.86863235,1822.2,1821.6,3.044]
[1680592154075,6.08402218,1822.1,1821.8,0.22043768]
[1680592154275,4.2066,1822.0,1821.8,0.22043768]
[1680592154454,13.11402218,1821.9,1821.8,0.22043768]
[1680592154649,13.35202218,1821.9,1821.8,0.22043768]
[1680592155057,13.35202218,1821.9,1821.5,0.044]
[1680592155388,6.08920222,1821.8,1821.5,0.044]
[1680592155549,8.8572244,1821.8,1821.5,0.044]
[1680592155754,8.8572244,1821.8,1821.4,0.2636]
[1680592155955,8.8572244,1821.8,1821.6,0.21329036]
[1680592156163,2.09172244,1821.7,1821.6,0.21329036]
[1680592156367,1.10529244,1821.7,1821.6,0.21329036]
[1680592156688,1.213,1821.8,1821.6,0.21329036]
[1680592156689,1.205,1821.8,1821.6,0.21329036]
[1680592156889,0.002,1821.8,1821.6,0.42787036]
[1680592157062,1.201,1822.0,1821.6,0.42787036]
[1680592157256,8.3918585,1822.0,1821.6,0.42787036]
[1680592157458,8.3998585,1822.0,1821.6,0.42787036]
[1680592158053,8.3998585,1822.0,1821.6,0.20829036]
[1680592158274,8.3998585,1822.0,1821.6,0.42787036]
[1680592159475,8.3998585,1822.0,1821.6,0.20829036]
[1680592159675,0.83998585,1821.9,1821.6,0.20829036]
[1680592159998,2.26453585,1821.9,1821.6,0.20829036]
[1680592160155,2.04498585,1821.9,1821.4,0.2636]
[1680592160352,2.04498585,1821.9,1821.5,0.044]
[1680592160555,0.20449859,1821.8,1821.5,0.044]
[1680592160883,2.04498585,1821.9,1821.5,0.044]
[1680592161057,2.26453585,1821.9,1821.6,0.21414787]
[1680592161257,2.04498585,1821.9,1821.6,0.21414787]
[1680592161665,2.26453585,1821.9,1821.6,0.21414787]
[1680592162171,7.14355803,1821.9,1821.5,0.044]
[1680592162357,0.22645359,1821.8,1821.5,0.044]
[1680592162562,0.22645359,1821.8,1821.4,0.044]
[1680592164004,0.22645359,1821.8,1821.4,0.2636]
[1680592164169,0.002,1821.9,1821.4,0.70282]
[1680592164364,14.3349,1822.1,1821.5,0.044]
[1680592164365,9.7805,1822.1,1821.5,0.044]
[1680592164603,9.7805,1822.1,1821.5,9.21888418]
[1680592164786,9.7805,1822.1,1821.5,3.84107418]
[1680592164991,9.7805,1822.1,1821.6,0.044]
[1680592165190,9.7805,1822.1,1821.6,0.46951691]
[1680592165391,9.7805,1822.1,1821.6,0.90868691]
[1680592165581,9.7805,1822.1,1821.7,0.13486869]
[1680592165772,9.7805,1822.1,1821.8,0.21956]
[1680592165973,0.008,1822.1,1821.8,0.21956]
[1680592166336,8.45054761,1822.3,1821.8,0.21956]
[1680592166498,10.49054237,1822.3,1821.7,0.26357]
[1680592166684,10.49054237,1822.3,1821.7,0.044]
[1680592166882,10.92954237,1822.3,1821.8,0.044]
[1680592167081,1.09295424,1822.2,1821.7,0.044]
[1680592167282,1.31247424,1822.2,1821.7,0.044]
[1680592167473,0.23,1822.1,1821.7,0.044]
[1680592167678,0.23,1822.1,1821.6,0.46951691]
[1680592167879,0.23,1822.1,1821.7,0.044]
[1680592168110,7.50799182,1822.1,1821.7,0.044]
[1680592168311,8.19402218,1822.0,1821.6,0.20593691]
[1680592168497,8.41556218,1822.0,1821.6,0.20593691]
[1680592168685,0.23,1821.9,1821.6,0.20593691]
[1680592170914,8.20202218,1822.0,1821.6,0.20593691]
[1680592171115,9.14162236,1822.0,1821.6,0.42551691]
[1680592171287,9.14162236,1822.0,1821.6,0.20593691]
[1680592171488,0.008,1822.0,1821.6,0.24993691]
[1680592171714,3.18495424,1822.2,1821.6,0.20593691]
[1680592171715,0.21953,1822.1,1821.6,0.20593691]
[1680592173317,3.41046424,1822.2,1821.6,0.42551691]
[1680592173488,3.41046424,1822.2,1821.6,0.5163876]
[1680592173691,3.84948424,1822.2,1821.6,0.2968076]
[1680592173890,3.41046424,1822.2,1821.6,0.5603876]
[1680592174114,3.84948424,1822.2,1821.7,0.044]
[1680592174320,0.38494842,1822.1,1821.6,0.20593691]
[1680592174617,0.38494842,1822.1,1821.7,0.044]
[1680592174618,0.60447842,1822.1,1821.7,0.044]
[1680592174782,0.21953,1822.1,1821.7,0.044]
[1680592175113,3.84949424,1822.2,1821.7,0.24039185]
[1680592175412,3.41047424,1822.2,1821.8,0.044]
[1680592175617,3.18495424,1822.2,1821.7,0.45996185]
[1680592175917,3.41046424,1822.2,1821.7,0.24039185]
[1680592176096,3.41046424,1822.2,1821.7,0.45996185]
[1680592176484,3.41046424,1822.2,1821.7,0.41596185]
[1680592176685,3.19095424,1822.2,1821.7,0.41596185]
[1680592176882,0.31909542,1822.1,1821.7,0.19639185]
[1680592177319,0.31614469,1822.1,1821.7,0.24039185]
[1680592178700,0.53566469,1822.1,1821.7,0.19639185]
[1680592179818,0.31614469,1822.1,1821.7,0.19639185]
[1680592180188,0.53566469,1822.1,1821.7,0.19639185]
[1680592181086,0.53566469,1822.1,1821.5,8.27041192]
[1680592181491,0.53566469,1822.1,1821.6,0.044]
[1680592182201,0.53566469,1822.1,1821.5,9.14852058]
[1680592182699,0.53566469,1822.1,1821.6,0.044]
[1680592183009,0.53566469,1822.1,1821.6,0.26358]
[1680592183726,0.53566469,1822.1,1821.6,0.044]
[1680592183887,0.53566469,1822.1,1821.6,0.95885206]
[1680592184082,0.21952,1822.1,1821.7,0.19639185]
[1680592188519,0.65857,1822.1,1821.7,0.19639185]
[1680592189593,0.21952,1822.1,1821.7,0.19639185]
[1680592190027,0.21952,1822.1,1821.6,0.044]
[1680592190430,0.72667042,1822.1,1821.6,0.044]
[1680592192207,0.21956,1821.8,1821.5,0.008]
[1680592192404,0.21956,1821.8,1821.5,0.044]
[1680592192627,0.21956,1821.8,1821.5,0.05]
[1680592192951,3.53756,1821.9,1821.5,0.05]
[1680592193157,0.583756,1821.8,1821.5,0.05]
[1680592193363,0.803316,1821.8,1821.5,0.05]
[1680592194118,0.583756,1821.8,1821.5,0.05]
[1680592194314,0.803316,1821.8,1821.5,0.05]
[1680592194528,0.583756,1821.8,1821.5,0.05]
[1680592194822,0.353756,1821.8,1821.5,0.05]
[1680592196045,3.318,1821.6,1821.5,0.006]
[1680592196248,16.3885144,1821.6,1821.5,0.006]
[1680592196442,16.3905144,1821.6,1821.2,0.006]
[1680592196627,5.41,1821.4,1821.1,0.67122675]
[1680592196835,0.65886,1821.3,1821.1,0.67122675]
[1680592197031,0.65886,1821.3,1821.1,0.106]
[1680592197351,1.265946,1821.3,1821.1,0.1]
[1680592198119,1.26231099,1821.3,1821.1,0.1]
[1680592198929,1.26231099,1821.3,1821.2,0.1940098]
[1680592199339,1.49231099,1821.3,1821.2,0.1940098]
[1680592199756,15.50533317,1821.3,1821.2,0.1940098]
[1680592200058,15.50733317,1821.3,1821.1,0.1]
[1680592200257,7.19653332,1821.2,1821.1,0.1]
[1680592200560,0.002,1821.2,1821.1,0.1]
[1680592200856,0.21598499,1821.3,1821.1,0.1]
[1680592204737,0.65522499,1821.3,1821.1,0.1]
[1680592205333,6.31402218,1821.2,1821.1,0.09618626]
[1680592205579,6.60117468,1821.2,1821.1,0.09618626]
[1680592205736,0.002,1821.2,1821.1,0.09618626]
[1680592205925,0.21963,1821.2,1821.1,0.09618626]
[1680592206463,0.6589,1821.2,1821.1,0.09618626]
[1680592206762,0.21963,1821.2,1821.1,0.09618626]
[1680592207972,6.30365218,1821.2,1821.1,0.09618626]
[1680592208128,7.2099424,1821.2,1821.1,0.09618626]
[1680592208863,4.21392022,1821.2,1821.1,0.09618626]
[1680592209032,4.21192022,1821.2,1821.1,0.09618626]
[1680592209428,4.65119022,1821.2,1821.1,0.09618626]
[1680592210563,4.21192022,1821.2,1821.1,0.09618626]
[1680592211251,6.9779424,1821.2,1821.1,0.09618626]
[1680592211482,3.99429022,1821.2,1821.1,0.09618626]
[1680592211683,3.99229022,1821.2,1821.1,0.09618626]
[1680592213595,3.53963,1821.3,1821.1,0.09618626]
[1680592213798,6.08402218,1821.3,1821.1,0.09618626]
[1680592214014,6.30565218,1821.3,1821.2,0.17530731]
[1680592214167,8.4724094,1821.3,1821.2,0.17530731]
[1680592214367,8.2527794,1821.3,1821.2,0.17530731]
[1680592214611,8.4724094,1821.3,1821.2,0.17530731]
[1680592214777,0.002,1821.3,1821.2,2.94132949]
[1680592215127,0.006,1821.6,1821.2,15.13645624]
[1680592215426,0.006,1822.0,1821.4,2.11]
[1680592215565,0.22554,1822.0,1821.4,3.28421]
[1680592215761,0.006,1822.0,1821.5,0.044]
[1680592216268,0.21953,1822.0,1821.5,0.044]
[1680592216585,7.14088018,1822.0,1821.4,0.044]
[1680592216780,7.14888018,1822.0,1821.3,4.8466]
[1680592217113,7.14888018,1822.0,1821.3,4.8026]
[1680592217114,0.21956,1821.8,1821.3,4.8026]
[1680592217266,7.5597504,1821.8,1821.3,4.8086]
[1680592217467,7.5617504,1821.8,1821.3,4.8086]
[1680592217901,7.5617504,1821.8,1821.3,4.8026]
[1680592218061,7.5677504,1821.8,1821.3,4.8026]
[1680592218270,7.06036722,1821.7,1821.2,0.17730731]
[1680592218507,7.06836722,1821.7,1821.2,0.17530731]
[1680592218866,6.84879722,1821.7,1821.2,0.39493731]
[1680592219088,6.84879722,1821.7,1821.2,0.21963]
[1680592219683,7.06836722,1821.7,1821.2,0.21963]
[1680592219922,0.70683672,1821.6,1821.1,3.38205307]
[1680592220124,0.92642672,1821.6,1821.1,3.16242307]
[1680592220302,0.71283672,1821.6,1821.1,0.38206307]
[1680592220498,0.07128367,1821.5,1821.1,0.11842307]
[1680592220697,0.93242672,1821.6,1821.1,0.38206307]
[1680592220898,0.71283672,1821.6,1821.1,0.38206307]
[1680592221228,0.93241672,1821.6,1821.1,0.16242307]
[1680592221890,0.93241672,1821.6,1821.1,0.11842307]
[1680592222094,7.0164389,1821.6,1821.1,0.33806307]
[1680592222293,0.93164389,1821.5,1821.1,0.33806307]
[1680592222598,7.68045607,1821.5,1821.1,0.09618626]
[1680592222800,7.68245607,1821.5,1821.1,0.09618626]
[1680592223831,7.67135607,1821.5,1821.1,0.09618626]
[1680592224032,0.76713561,1821.4,1821.1,0.09618626]
[1680592224217,0.98674561,1821.4,1821.1,0.09618626]
[1680592225114,1.42596561,1821.4,1821.1,0.09618626]
[1680592225314,0.76713561,1821.4,1821.1,0.09618626]
[1680592225629,0.002,1821.5,1821.1,0.09618626]
[1680592225935,0.21958,1821.6,1821.1,0.31582626]
[1680592226136,0.21958,1821.6,1821.1,0.09618626]
[1680592226434,9.75483,1821.7,1821.1,0.31582626]
[1680592226639,3.32,1821.7,1821.1,0.35982626]
[1680592226825,3.53758,1821.7,1821.1,0.53523156]
[1680592227138,3.53758,1821.7,1821.1,0.60146837]
[1680592227745,10.44737,1821.8,1821.1,1.04075837]
[1680592227901,0.21958,1821.7,1821.2,1.25]
[1680592228247,0.65873,1821.7,1821.3,0.125]
[1680592228532,0.21958,1821.7,1821.3,0.125]
[1680592228737,0.6587,1821.8,1821.3,0.125]
[1680592229114,0.6587,1821.8,1821.4,0.15960228]
[1680592229321,1.197,1821.6,1821.4,0.15960228]
[1680592229660,0.65878,1821.5,1821.4,0.15960228]
[1680592230150,0.65878,1821.5,1821.1,0.09618626]
[1680592230441,0.88878,1821.5,1821.1,0.09618626]
[1680592230653,0.44959,1821.5,1821.1,0.09618626]
[1680592230870,0.002,1821.6,1821.1,0.09618626]
[1680592231011,0.2196,1821.5,1821.2,0.1608435]
[1680592231712,0.21959,1821.6,1821.2,0.1608435]
[1680592231937,7.83350618,1821.6,1821.2,0.1608435]
[1680592232105,0.23,1821.5,1821.1,0.09618626]
[1680592232311,0.4496,1821.5,1821.1,0.09618626]
[1680592232928,0.23,1821.5,1821.1,0.09618626]
[1680592233248,0.002,1821.6,1821.2,0.02223559]
[1680592233545,3.324,1821.8,1821.2,0.76459299]
[1680592233546,0.21957,1821.8,1821.2,0.76459299]
[1680592233948,15.30712,1821.9,1821.2,0.77059299]
[1680592234341,15.30712,1821.9,1821.2,5.56899299]
[1680592234665,15.30712,1821.9,1821.2,5.57099299]
[1680592235091,0.21956,1821.8,1821.2,6.13621974]
[1680592235295,0.65868,1821.8,1821.3,0.61362197]
[1680592236384,0.65868,1821.8,1821.2,5.35137299]
[1680592237058,0.65868,1821.8,1821.2,5.30737299]
[1680592237751,0.65868,1821.8,1821.2,5.35137299]
[1680592237945,0.65868,1821.8,1821.2,5.30737299]
[1680592238782,0.65868,1821.8,1821.2,5.87259974]
[1680592238962,0.65868,1821.8,1821.3,0.58725997]
[1680592239282,2.76602218,1821.7,1821.2,4.82863559]
[1680592239456,6.30360218,1821.7,1821.2,4.82663559]
[1680592239659,0.002,1821.7,1821.2,5.61149234]
[1680592239848,0.44957,1821.7,1821.2,5.39386234]
[1680592240048,0.870239,1821.7,1821.2,5.39386234]
[1680592240244,0.870239,1821.7,1821.2,4.82863559]
[1680592240557,0.640239,1821.7,1821.2,4.82663559]
[1680592240890,0.640239,1821.7,1821.2,5.39186234]
[1680592241052,0.640239,1821.7,1821.2,5.39386234]
[1680592241254,3.75912,1821.8,1821.2,6.21741421]
[1680592241453,3.75912,1821.8,1821.2,6.43704421]
[1680592241454,6.30359218,1821.8,1821.2,6.43704421]
[1680592241759,0.002,1821.8,1821.2,7.64304421]
[1680592241946,15.3071,1821.9,1821.2,7.42341421]
[1680592242147,2.18939,1821.8,1821.2,6.21741421]
[1680592243954,2.18939,1821.8,1821.2,5.65218746]
[1680592244279,2.18939,1821.8,1821.3,0.18130511]
[1680592244478,2.18939,1821.8,1821.3,0.18730511]
[1680592245055,8.27341218,1821.8,1821.3,0.18730511]
[1680592245401,3.8233634,1821.7,1821.3,0.18730511]
[1680592245566,0.21958,1821.6,1821.3,0.18130511]
[1680592245763,6.74277218,1821.6,1821.3,0.18130511]
[1680592245990,6.08402218,1821.5,1821.3,0.18130511]
[1680592246205,6.30562218,1821.5,1821.3,0.18130511]
[1680592246401,0.63056222,1821.4,1821.3,0.18130511]
[1680592246577,1.28939222,1821.4,1821.3,0.18130511]
[1680592247006,12.7531944,1821.4,1821.3,0.18130511]
[1680592247181,15.4978544,1821.4,1821.1,0.09618626]
[1680592247380,9.06980762,1821.3,1821.1,0.09618626]
[1680592247579,0.21963,1821.2,1821.1,0.09618626]
[1680592248186,0.6589,1821.2,1821.1,0.09618626]
[1680592249505,0.21963,1821.2,1821.1,0.09618626]
[1680592249671,0.002,1821.3,1821.1,0.09618626]
[1680592249878,0.75876502,1821.4,1821.1,0.09618626]
[1680592250072,1.7921165,1821.4,1821.1,0.09618626]
[1680592250307,2.2313365,1821.4,1821.1,0.09618626]
[1680592251011,6.08402218,1821.3,1821.1,0.09618626]
[1680592251199,0.22162,1821.3,1821.1,0.09618626]
[1680592251407,3.53962,1821.4,1821.1,0.09618626]
[1680592251582,10.014,1821.5,1821.1,0.09618626]
[1680592251790,12.99962218,1821.5,1821.1,0.09618626]
[1680592251990,14.8017214,1821.5,1821.1,0.09618626]
[1680592252190,18.1197214,1821.5,1821.1,0.09618626]
[1680592252389,18.5589114,1821.5,1821.1,0.09618626]
[1680592252594,15.2409114,1821.5,1821.1,0.09618626]
[1680592253392,17.9001214,1821.5,1821.1,0.09618626]
[1680592253612,15.35368922,1821.5,1821.1,0.09618626]
[1680592254080,1.53536892,1821.4,1821.1,0.09618626]
[1680592254299,0.65886,1821.3,1821.1,0.09618626]
[1680592255781,6.74288218,1821.3,1821.1,0.09618626]
[1680592256111,0.44963,1821.2,1821.1,0.09618626]
[1680592257284,0.44463,1821.2,1821.1,0.09618626]
[1680592257595,7.2256414,1821.2,1821.1,0.09618626]
[1680592257806,7.2276414,1821.2,1821.1,0.09618626]
[1680592258007,7.0080114,1821.2,1821.1,0.09618626]
[1680592258409,7.2276414,1821.2,1821.1,0.09618626]
[1680592258581,7.0080114,1821.2,1821.1,0.09618626]
[1680592259083,7.0080114,1821.2,1821.1,0.27919398]
[1680592259282,7.2276414,1821.2,1821.1,0.27919398]
[1680592259483,3.9096414,1821.2,1821.1,0.27919398]
[1680592259723,0.225,1821.2,1821.1,0.27919398]
[1680592260587,3.318,1821.3,1821.1,0.27919398]
[1680592260794,4.0773939,1821.4,1821.1,0.27919398]
[1680592261014,6.84141608,1821.4,1821.1,0.27919398]
[1680592261313,6.30563218,1821.4,1821.1,0.27919398]
[1680592261515,6.08402218,1821.3,1821.1,0.27919398]
[1680592261816,3.53963,1821.3,1821.1,0.27919398]
[1680592262020,3.53763,1821.3,1821.1,0.27919398]
[1680592262819,3.318,1821.3,1821.1,0.27919398]
[1680592263021,3.53762,1821.3,1821.1,0.27919398]
[1680592264017,3.318,1821.3,1821.1,0.09618626]
[1680592264722,0.22162,1821.4,1821.1,0.09618626]
[1680592264888,0.21962,1821.4,1821.1,0.09618626]
[1680592266300,0.65884,1821.4,1821.1,0.09618626]
[1680592271329,0.6589,1821.2,1821.1,0.09618626]
[1680592273243,6.97292218,1821.2,1821.1,0.09618626]
[1680592273403,6.97492218,1821.2,1821.1,0.09618626]
[1680592274529,6.53565218,1821.2,1821.1,0.09618626]
[1680592274729,8.3459614,1821.2,1821.1,0.09618626]
[1680592277835,16.5659614,1821.2,1821.1,0.09618626]
[1680592282537,19.5659614,1821.2,1821.1,0.09618626]
[1680592283718,19.5719614,1821.2,1821.1,0.09618626]
[1680592284501,19.5659614,1821.2,1821.1,0.09618626]
[1680592284727,20.52362388,1821.2,1821.1,0.09618626]
[1680592290340,20.53462388,1821.2,1821.1,0.09618626]
[1680592290551,20.53462388,1821.2,1821.1,0.09401284]
[1680592290849,12.87118,1821.0,1820.9,0.1]
[1680592291050,20.07520218,1821.0,1820.9,0.1]
[1680592291554,25.05190218,1821.0,1820.9,0.1]
[1680592291751,22.85531218,1821.0,1820.9,0.1]
[1680592291953,21.64931218,1821.0,1820.9,0.1]
[1680592292125,23.34936514,1821.0,1820.9,0.1]
[1680592292325,24.55536514,1821.0,1820.9,0.1]
[1680592292939,18.50636514,1821.0,1820.9,0.1]
[1680592293148,0.002,1821.0,1820.9,0.1]
[1680592293318,0.21965,1821.0,1820.9,0.1]
[1680592294188,0.65896,1821.0,1820.9,0.1]
[1680592294752,6.74298218,1821.0,1820.9,0.1]
[1680592294952,6.97498218,1821.0,1820.9,0.1]
[1680592295313,9.7586404,1821.0,1820.9,0.1]
[1680592295653,16.7836404,1821.0,1820.9,0.1]
[1680592296618,19.7836404,1821.0,1820.9,0.1]
[1680592305259,18.5776404,1821.0,1820.9,0.1]
[1680592308251,18.5776404,1821.0,1820.7,0.1]
[1680592308561,18.5776404,1821.0,1820.5,0.1]
[1680592308562,13.10902218,1820.8,1820.5,0.1]
[1680592308776,11.90302218,1820.6,1820.5,0.1]
[1680592308962,12.56413218,1820.6,1820.5,0.1]
[1680592309213,12.79413218,1820.6,1820.5,0.1]
[1680592309490,14.4614284,1820.6,1820.5,0.1]
[1680592311565,8.4124284,1820.6,1820.5,0.1]
[1680592311770,6.74513218,1820.6,1820.5,0.1]
[1680592312952,6.97513218,1820.6,1820.5,0.1]
[1680592316956,3.97911,1820.6,1820.5,0.1]
[1680592317160,0.2197,1820.6,1820.5,0.1]
[1680592317611,0.76833642,1820.6,1820.5,0.1]
[1680592317782,4.11858314,1820.7,1820.5,0.1]
[1680592317977,0.2197,1820.6,1820.5,0.1]
[1680592318209,6.88460532,1820.7,1820.5,0.1]
[1680592318592,6.44521532,1820.7,1820.5,0.1]
[1680592320598,0.14149314,1820.7,1820.5,0.1]
[1680592320786,0.78148463,1820.8,1820.5,0.2472]
[1680592320976,0.21969,1820.8,1820.5,0.2472]
[1680592321157,0.65902,1820.9,1820.5,0.2472]
[1680592322702,0.23,1820.8,1820.5,0.106]
[1680592322910,0.44969,1820.8,1820.5,0.106]
[1680592323602,6.66408992,1820.9,1820.6,1.22524292]
[1680592323603,0.14072774,1820.9,1820.6,1.22524292]
[1680592323780,0.13872774,1820.9,1820.6,1.23124292]
[1680592323975,0.35839774,1820.9,1820.6,1.23124292]
[1680592324173,0.25004973,1820.7,1820.6,1.36436721]
[1680592324384,0.006,1821.1,1820.7,1.5]
[1680592324720,0.21961,1821.4,1821.1,1.0]
[1680592324884,0.57484686,1821.6,1821.2,1.306]
[1680592325224,0.36125686,1821.6,1821.2,1.306]
[1680592325388,0.35525686,1821.6,1821.2,1.306]
[1680592325568,0.79442686,1821.6,1821.2,1.306]
[1680592326269,6.08402218,1821.5,1821.2,0.1]
[1680592326470,6.08602218,1821.5,1821.2,0.1]
[1680592328314,6.03602218,1821.5,1821.2,0.1]
[1680592330524,6.25561218,1821.5,1821.2,0.1]
[1680592330730,6.03602218,1821.5,1821.2,0.1]
[1680592332226,0.2109354,1821.4,1821.2,0.1]
[1680592332595,0.20725543,1821.4,1821.2,0.1]
[1680592335083,0.21962,1821.3,1821.0,1.212]
[1680592335323,0.21962,1821.3,1821.0,0.006]